bitfinex-derivatives/quotes_SOLF0:USTF0_20250819
["timestamp","ask_amount","ask_price","bid_price","bid_amount"]
[1755581766973,2.89,179.79,179.71,3.15]
[1755581767484,2.89,179.79,179.71,8.7124]
[1755581768082,2.89,179.79,179.71,12.42691813]
[1755581768271,2.89,179.79,179.72,8.7123]
[1755581768480,3.71451813,179.82,179.72,3.15]
[1755581768983,2.89,179.81,179.72,3.15]
[1755581773280,2.89,179.74,179.6,3.15]
[1755581773476,2.89,179.74,179.64,3.15]
[1755581773686,2.89,179.74,179.66,5.5641]
[1755581773887,2.89,179.74,179.67,3.15]
[1755581775990,2.89,179.78,179.67,3.15]
[1755581776181,2.89,179.78,179.7,3.15]
[1755581778586,139.26,179.8,179.7,3.15]
[1755581779293,139.26,179.8,179.7,8.7128]
[1755581779588,139.26,179.8,179.71,3.15]
[1755581779985,139.26,179.8,179.73,3.15]
[1755581780994,2.89,179.79,179.73,3.15]
[1755581781896,2.89,179.79,179.69,6.86451813]
[1755581782089,2.89,179.79,179.69,3.15]
[1755581783393,4.5009171,179.78,179.69,3.15]
[1755581783588,2.99,179.77,179.69,3.15]
[1755581786296,2.99,179.77,179.7,3.71451813]
[1755581786496,2.99,179.77,179.71,2.96]
[1755581787193,142.25,179.8,179.71,2.96]
[1755581787788,2.99,179.79,179.71,2.96]
[1755581789690,2.99,179.77,179.67,2.96]
[1755581790196,2.99,179.77,179.69,2.96]
[1755581790396,2.99,179.77,179.7,2.96]
[1755581790593,138.76,179.81,179.7,2.96]
[1755581790893,4.50202765,179.8,179.72,2.96]
[1755581791095,2.99,179.8,179.72,2.96]
[1755581791983,2.99,179.8,179.72,8.5224]
[1755581792187,2.99,179.8,179.72,2.96]
[1755581796991,138.96,179.82,179.74,3.71451813]
[1755581797188,138.96,179.82,179.75,2.96]
[1755581797384,2.99,179.81,179.68,6.16957976]
[1755581797599,2.99,179.78,179.67,2.96]
[1755581797793,2.99,179.78,179.69,2.96]
[1755581799594,2.99,179.83,179.72,2.96]
[1755581799896,4.50112599,179.82,179.72,2.96]
[1755581800102,2.99,179.83,179.72,2.96]
[1755581800294,4.50112597,179.82,179.72,2.96]
[1755581800494,2.99,179.83,179.72,2.96]
[1755581800694,4.50207468,179.82,179.72,2.96]
[1755581800894,2.99,179.83,179.72,2.96]
[1755581801090,4.50207468,179.82,179.72,2.96]
[1755581801287,2.99,179.83,179.74,3.71451813]
[1755581801598,138.84,179.84,179.75,2.96]
[1755581802799,2.99,179.83,179.75,2.96]
[1755581808200,138.84,179.84,179.75,2.96]
[1755581808501,2.99,179.88,179.81,2.96]
[1755581809801,4.50195634,179.87,179.77,6.67451813]
[1755581809998,2.99,179.88,179.77,6.67451813]
[1755581811208,2.99,179.86,179.77,6.67451813]
[1755581813311,2.99,179.86,179.78,2.9]
[1755581816312,2.93,179.89,179.78,2.9]
[1755581822009,2.93,179.89,179.8,3.71451813]
[1755581822314,2.93,179.89,179.81,2.9]
[1755581823807,2.93,179.89,179.8,3.71451813]
[1755581824409,2.93,179.89,179.81,2.9]
[1755581827201,2.93,179.89,179.78,2.9]
[1755581827816,2.93,179.89,179.78,6.61451813]
[1755581828614,2.93,179.89,179.79,2.9]
[1755581831711,4.493059,179.88,179.79,2.9]
[1755581831906,2.93,179.87,179.76,2.9]
[1755581832115,2.93,179.84,179.76,2.9]
[1755581832312,2.93,179.84,179.73,2.9]
[1755581834913,3.71451813,179.85,179.73,2.9]
[1755581836209,4.51105249,179.84,179.73,2.9]
[1755581836410,2.93,179.83,179.73,2.9]
[1755581839819,2.93,179.87,179.75,3.71451813]
[1755581840020,2.93,179.87,179.76,2.9]
[1755581840216,4.51248122,179.86,179.76,2.9]
[1755581840419,2.93,179.87,179.76,2.9]
[1755581840620,2.93,179.87,179.78,3.71451813]
[1755581840815,2.93,179.87,179.79,2.9]
[1755581847726,3.01,179.85,179.75,3.71451813]
[1755581847922,3.01,179.85,179.76,2.97]
[1755581850828,3.01,179.83,179.72,9.13957976]
[1755581851031,4.52092894,179.82,179.72,2.97]
[1755581851227,3.01,179.83,179.72,2.97]
[1755581851427,4.52068024,179.82,179.72,2.97]
[1755581851631,3.01,179.83,179.72,2.97]
[1755581851828,4.52068024,179.82,179.72,2.97]
[1755581852031,3.01,179.83,179.72,2.97]
[1755581852333,4.52027979,179.82,179.72,2.97]
[1755581852531,3.01,179.8,179.72,2.97]
[1755581852732,4.52117526,179.79,179.72,2.97]
[1755581852926,3.01,179.78,179.69,2.97]
[1755581855327,7.52706588,179.77,179.69,2.97]
[1755581855529,3.71451813,179.78,179.64,6.16957976]
[1755581855530,7.52706588,179.76,179.65,2.97]
[1755581855731,3.01,179.76,179.65,2.97]
[1755581856532,4.51432635,179.75,179.65,2.97]
[1755581856741,3.01,179.76,179.65,2.97]
[1755581856932,3.01,179.74,179.65,2.97]
[1755581857837,3.01,179.77,179.68,2.97]
[1755581858938,3.01,179.81,179.71,2.97]
[1755581859742,3.01,179.81,179.74,2.97]
[1755581861640,3.01,179.85,179.74,2.97]
[1755581864442,3.01,179.85,179.77,2.97]
[1755581865536,3.01,179.84,179.72,2.97]
[1755581865732,3.01,179.84,179.72,6.68451813]
[1755581865932,3.01,179.84,179.75,3.71451813]
[1755581866141,3.01,179.84,179.76,2.97]
[1755581866945,3.01,179.87,179.76,2.97]
[1755581867442,3.01,179.87,179.79,2.97]
[1755581868345,3.01,179.87,179.78,3.71451813]
[1755581868540,3.01,179.87,179.76,2.97]
[1755581871439,3.01,179.87,179.79,2.97]
[1755581884650,3.01,179.87,179.75,3.13]
[1755581891358,4.5238727,179.86,179.75,3.13]
[1755581891562,3.03,179.85,179.75,3.13]
[1755581894256,5.76932041,179.88,179.71,3.71253287]
[1755581894257,8.25716535,179.84,179.71,3.71253287]
[1755581894463,3.03,179.8,179.71,3.13]
[1755581894765,3.03,179.8,179.72,3.13]
[1755581896365,3.03,179.83,179.75,3.13]
[1755581897660,3.03,179.83,179.77,3.71253287]
[1755581897861,3.03,179.86,179.78,3.13]
[1755581900872,3.03,179.92,179.81,3.13]
[1755581901071,3.03,179.9,179.81,3.13]
[1755581901371,4.54574187,179.89,179.81,3.13]
[1755581902460,3.07,179.88,179.81,3.13]
[1755581903171,3.07,179.91,179.81,3.13]
[1755581903566,4.55329851,179.9,179.81,3.13]
[1755581903873,3.07,179.91,179.83,3.71253287]
[1755581904072,3.07,179.91,179.84,2.91]
[1755581908081,3.07,179.91,179.8,6.62253287]
[1755581908373,3.07,179.91,179.81,2.91]
[1755581908973,3.07,179.91,179.84,2.91]
[1755581909178,376.73,179.94,179.84,2.91]
[1755581909472,3.07,179.92,179.84,2.91]
[1755581911666,3.07,179.95,179.86,3.71253287]
[1755581911872,3.07,179.95,179.87,2.91]
[1755581913674,3.07,179.95,179.88,2.91]
[1755581914073,137.88,179.96,179.88,2.91]
[1755581915168,3.07,179.95,179.88,2.91]
[1755581918174,137.88,179.96,179.88,2.91]
[1755581918375,3.07,179.98,179.9,2.91]
[1755581921976,3.07,179.98,179.87,2.91]
[1755581923785,3.07,179.98,179.88,2.91]
[1755581923978,3.07,179.98,179.9,2.91]
[1755581926383,3.07,179.98,179.86,3.71253287]
[1755581926589,3.07,179.98,179.86,2.91]
[1755581926985,3.07,179.98,179.87,2.91]
[1755581927787,3.07,179.95,179.87,2.91]
[1755581928891,3.07,179.95,179.83,6.62253287]
[1755581929487,3.07,179.95,179.84,2.91]
[1755581930580,3.07,179.95,179.85,5.5579]
[1755581930785,3.07,179.98,179.87,2.91]
[1755581932885,3.07,179.98,179.87,8.4672]
[1755581933090,3.07,179.98,179.88,3.09]
[1755581936097,3.07,179.98,179.89,3.09]
[1755581940503,3.71253287,179.97,179.83,3.71253287]
[1755581940698,3.1,179.93,179.84,3.09]
[1755581953521,3.71253287,179.95,179.84,3.09]
[1755581953727,3.1,179.96,179.87,3.71253287]
[1755581953929,4.54374019,179.95,179.88,3.09]
[1755581954226,3.1,179.96,179.88,3.09]
[1755581954421,4.54403497,179.95,179.88,3.09]
[1755581954626,3.1,179.96,179.88,3.09]
[1755581954830,4.54403497,179.95,179.88,3.09]
[1755581955022,3.1,179.96,179.88,3.09]
[1755581955228,4.54403497,179.95,179.88,3.09]
[1755581955426,3.1,179.96,179.88,3.09]
[1755581956022,3.1,179.99,179.88,3.09]
[1755581956228,7.4172362,179.98,179.88,3.09]
[1755581956422,4.5441391,179.97,179.88,3.09]
[1755581956624,3.1,179.99,179.88,3.09]
[1755581957122,7.41763916,179.98,179.88,3.09]
[1755581957329,4.54434682,179.97,179.89,3.09]
[1755581957530,3.1,179.99,179.89,3.09]
[1755581957827,3.1,179.97,179.89,3.09]
[1755581959129,4.54398111,179.96,179.89,3.09]
[1755581959318,3.1,179.97,179.89,3.09]
[1755581959520,4.54404316,179.96,179.89,3.09]
[1755581959730,3.1,179.97,179.89,3.09]
[1755581959926,4.54406294,179.96,179.89,3.09]
[1755581960126,3.1,179.97,179.89,3.09]
[1755581960324,4.54421907,179.96,179.89,3.09]
[1755581960525,3.1,179.97,179.89,3.09]
[1755581960725,4.54406782,179.96,179.89,3.09]
[1755581960932,3.1,179.97,179.89,3.09]
[1755581961129,4.54404803,179.96,179.89,3.09]
[1755581961319,3.1,179.97,179.89,3.09]
[1755581961636,3.1,179.95,179.89,3.09]
[1755581961827,3.1,179.95,179.85,3.09]
[1755581962034,3.1,179.93,179.85,3.09]
[1755581964530,2.88,179.97,179.85,3.09]
[1755581964834,4.54444701,179.96,179.85,8.6477]
[1755581965036,2.88,179.97,179.86,3.0]
[1755581965230,4.54455511,179.96,179.86,3.0]
[1755581965437,2.88,179.97,179.88,3.0]
[1755581965736,4.54426312,179.96,179.88,3.0]
[1755581965940,2.88,179.97,179.88,3.0]
[1755581966129,2.88,179.95,179.88,3.0]
[1755581970935,3.71253287,180.0,179.89,3.0]
[1755581971137,2.88,179.98,179.89,3.0]
[1755581971330,4.54481756,179.97,179.89,3.0]
[1755581972141,2.88,179.98,179.89,3.0]
[1755581972343,4.54461612,179.97,179.89,3.0]
[1755581972534,2.88,179.98,179.89,3.0]
[1755581972843,4.54457211,179.97,179.89,8.5565]
[1755581973030,6.59253287,180.03,179.91,3.0]
[1755581973235,4.5430521,180.02,179.91,3.0]
[1755581973535,4.5430521,180.01,179.92,5.5556]
[1755581973740,2.88,180.03,179.93,3.0]
[1755581974040,4.54224018,180.02,179.93,3.0]
[1755581974346,2.88,180.03,179.93,3.0]
[1755581974538,2.88,180.01,179.93,3.0]
[1755581975036,514.24,180.04,179.93,3.0]
[1755581975236,140.62,180.04,179.93,3.0]
[1755581975438,140.62,180.04,179.96,3.0]
[1755581976336,2.88,180.04,179.96,3.0]
[1755581978448,2.88,180.04,179.97,3.0]
[1755581984846,2.88,180.04,179.92,3.71253287]
[1755581985044,2.88,180.04,179.93,3.0]
[1755581990552,2.88,180.04,179.96,3.0]
[1755582000361,2.88,180.04,179.92,3.71253287]
[1755582000662,3.03,180.02,179.93,3.03]
[1755582001364,3.03,180.05,179.96,5.5544]
[1755582001663,137.52,180.11,179.98,3.03]
[1755582001865,137.52,180.11,179.87,11.1144]
[1755582001866,4.47282455,180.1,180.01,3.03]
[1755582002158,3.03,180.09,180.01,3.03]
[1755582002359,3.03,180.12,180.04,3.03]
[1755582003466,3.03,180.12,180.01,3.03]
[1755582004654,3.03,180.12,180.01,5.5529]
[1755582004855,3.03,180.12,180.02,3.03]
[1755582006557,3.03,180.12,180.04,3.03]
[1755582008272,3.03,180.16,180.06,3.71253287]
[1755582008473,3.03,180.16,180.07,3.03]
[1755582012271,3.03,180.16,180.08,3.71253287]
[1755582012468,3.03,180.16,180.09,3.03]
[1755582013065,140.55,180.19,180.09,3.03]
[1755582013268,3.03,180.23,180.12,3.03]
[1755582013563,3.03,180.23,180.12,8.5795]
[1755582013765,3.03,180.23,180.12,3.03]
[1755582014970,3.03,180.23,180.03,9.17141728]
[1755582014971,3.03,180.22,180.09,3.71253287]
[1755582015180,3.03,180.19,180.08,3.03]
[1755582019481,3.03,180.19,180.1,3.03]
[1755582019878,3.03,180.19,180.1,8.5802]
[1755582020086,3.03,180.19,180.1,3.03]
[1755582020579,3.03,180.19,180.11,3.03]
[1755582021084,3.03,180.19,180.09,3.71253287]
[1755582021085,3.03,180.19,180.12,6.74253287]
[1755582021581,3.03,180.19,180.12,12.29213287]
[1755582021786,3.03,180.19,180.12,6.74253287]
[1755582022081,3.03,180.19,180.12,3.03]
[1755582022578,3.03,180.19,180.09,3.71253287]
[1755582022774,3.03,180.19,180.09,3.18]
[1755582022976,3.15,180.17,180.09,3.18]
[1755582027785,3.15,180.17,180.09,8.7305]
[1755582028179,3.15,180.2,180.1,3.18]
[1755582028384,3.15,180.2,180.13,3.18]
[1755582028878,3.15,180.23,180.13,3.18]
[1755582029081,3.15,180.23,180.14,3.18]
[1755582030077,3.15,180.23,180.16,3.18]
[1755582035094,3.15,180.23,180.14,6.89253287]
[1755582035693,3.15,180.23,180.14,3.18]
[1755582036789,3.15,180.23,180.11,3.18]
[1755582038094,3.15,180.23,180.12,3.18]
[1755582038293,3.15,180.21,180.1,6.89253287]
[1755582038695,3.71253287,180.19,180.1,3.18]
[1755582038890,3.15,180.18,180.1,3.18]
[1755582043893,137.32,180.19,180.1,12.44273287]
[1755582044096,3.15,180.23,180.1,9.26273287]
[1755582044297,4.44767676,180.22,180.11,3.18]
[1755582044598,3.15,180.23,180.11,3.18]
[1755582044897,4.44767712,180.22,180.12,3.18]
[1755582045090,3.15,180.23,180.12,3.18]
[1755582045286,4.44756167,180.22,180.13,3.71253287]
[1755582045493,3.15,180.23,180.14,3.18]
[1755582046391,3.15,180.26,180.16,3.71253287]
[1755582046591,3.15,180.26,180.17,3.18]
[1755582048397,3.15,180.26,180.17,5.548]
[1755582048602,3.15,180.26,180.18,3.18]
[1755582052093,3.15,180.26,180.19,3.71253287]
[1755582052294,3.15,180.26,180.12,9.88211263]
[1755582052295,2.89,180.3,180.22,3.71253287]
[1755582052496,2.89,180.3,180.23,3.11]
[1755582052691,137.3,180.33,180.26,3.11]
[1755582052692,140.19,180.33,180.26,3.11]
[1755582052898,0.0410268,180.28,180.27,3.11]
[1755582053093,0.0410268,180.28,180.25,3.71253287]
[1755582053303,140.19,180.33,180.27,3.11]
[1755582053497,7.33754661,180.32,180.27,3.11]
[1755582053808,2.89,180.32,180.28,3.11]
[1755582054297,140.19,180.33,180.29,3.11]
[1755582054503,2.89,180.32,180.26,3.11]
[1755582060403,2.89,180.32,180.23,6.82253287]
[1755582064003,2.89,180.32,180.23,3.11]
[1755582064204,2.89,180.32,180.2,3.71253287]
[1755582065005,2.89,180.32,180.21,3.11]
[1755582065408,2.89,180.32,180.24,3.11]
[1755582070822,2.89,180.35,180.24,3.11]
[1755582071522,2.89,180.34,180.24,3.11]
[1755582072425,2.89,180.31,180.19,3.11]
[1755582072726,2.89,180.25,180.15,3.11]
[1755582074227,2.89,180.25,180.16,3.71253287]
[1755582074424,2.89,180.25,180.17,3.11]
[1755582074625,2.89,180.25,180.17,8.658]
[1755582074924,2.89,180.3,180.2,3.11]
[1755582075825,2.89,180.3,180.2,8.6571]
[1755582076030,2.89,180.3,180.12,140.97253287]
[1755582076031,140.11,180.34,180.23,3.11]
[1755582078630,140.11,180.34,180.26,3.11]
[1755582080836,2.89,180.34,180.26,3.11]
[1755582084831,3.71253287,180.39,180.26,3.11]
[1755582085037,3.18,180.38,180.29,3.16]
[1755582091044,3.18,180.38,180.27,3.16]
[1755582091343,3.18,180.36,180.27,3.16]
[1755582091543,3.18,180.34,180.27,3.16]
[1755582094654,3.18,180.34,180.24,3.16]
[1755582095052,3.18,180.32,180.24,3.16]
[1755582095948,3.18,180.32,180.25,3.16]
[1755582097547,3.18,180.37,180.25,3.16]
[1755582097747,4.44235446,180.36,180.25,3.16]
[1755582098046,7.62235446,180.35,180.25,3.16]
[1755582098252,3.18,180.35,180.25,3.16]
[1755582098849,3.18,180.35,180.26,3.16]
[1755582099053,3.18,180.35,180.28,3.16]
[1755582100260,3.18,180.39,180.28,3.16]
[1755582100556,147.12860106,180.42,180.28,3.16]
[1755582100557,3.18,180.37,180.28,3.16]
[1755582104753,3.18,180.37,180.29,3.16]
[1755582105358,3.18,180.37,180.31,3.16]
[1755582110053,3.71253287,180.42,180.31,3.16]
[1755582110254,3.18,180.4,180.31,3.16]
[1755582120160,3.18,180.4,180.29,3.71253287]
[1755582120463,2.97,180.38,180.28,2.99]
[1755582120661,4.45242326,180.37,180.28,2.99]
[1755582120864,2.97,180.38,180.28,2.99]
[1755582121161,2.97,180.36,180.28,2.99]
[1755582121358,2.97,180.36,180.26,3.71253287]
[1755582121560,2.97,180.34,180.26,2.99]
[1755582121759,2.97,180.34,180.23,2.99]
[1755582122556,16.68,180.4,180.28,2.99]
[1755582122557,2.97,180.4,180.28,2.99]
[1755582122761,2.97,180.38,180.28,2.99]
[1755582123866,2.97,180.38,180.3,3.71253287]
[1755582124068,2.97,180.38,180.31,2.99]
[1755582124660,2.97,180.41,180.31,2.99]
[1755582125168,2.97,180.41,180.31,3.71253287]
[1755582125459,2.97,180.41,180.32,2.99]
[1755582126861,2.97,180.41,180.35,2.99]
[1755582134668,2.97,180.41,180.32,2.99]
[1755582136271,2.97,180.41,180.35,2.99]
[1755582143569,2.99,180.46,180.36,3.71253287]
[1755582143772,2.99,180.46,180.4,2.91]
[1755582145770,2.99,180.46,180.36,2.91]
[1755582146079,2.99,180.44,180.36,2.91]
[1755582150978,2.99,180.44,180.32,6.62253287]
[1755582151975,2.99,180.44,180.32,2.91]
[1755582151976,7.35035618,180.43,180.32,2.91]
[1755582152168,3.71253287,180.44,180.32,2.91]
[1755582152169,2.99,180.41,180.32,2.91]
[1755582153275,2.99,180.39,180.32,2.91]
[1755582154471,2.99,180.39,180.29,3.71253287]
[1755582154675,2.99,180.37,180.28,2.91]
[1755582154974,4.36227259,180.36,180.28,2.91]
[1755582155182,2.99,180.37,180.28,2.91]
[1755582158580,137.06,180.41,180.25,140.77253287]
[1755582158581,6.70253287,180.35,180.25,139.97]
[1755582158775,2.99,180.34,180.25,139.97]
[1755582159484,3.71253287,180.38,180.26,2.91]
[1755582159784,2.99,180.36,180.26,2.91]
[1755582160597,2.99,180.36,180.29,2.91]
[1755582162887,3.71253287,180.39,180.29,2.91]
[1755582163090,2.99,180.39,180.29,2.91]
[1755582164190,2.99,180.38,180.29,2.91]
[1755582165688,2.99,180.38,180.29,3.71253287]
[1755582165982,2.99,180.38,180.3,2.91]
[1755582166182,2.99,180.42,180.3,2.91]
[1755582166396,2.99,180.42,180.33,2.91]
[1755582169090,2.99,180.42,180.32,3.71253287]
[1755582169291,2.99,180.42,180.34,2.91]
[1755582174605,2.99,180.42,180.35,3.09]
[1755582175289,2.98,180.45,180.35,3.09]
[1755582180403,2.98,180.43,180.35,3.09]
[1755582180603,2.98,180.43,180.32,6.80253287]
[1755582181310,143.79253287,180.46,180.33,3.09]
[1755582181502,7.36900818,180.45,180.33,3.09]
[1755582181703,2.98,180.45,180.33,8.6329]
[1755582181903,2.98,180.45,180.34,3.09]
[1755582182411,2.98,180.45,180.35,3.09]
[1755582182809,2.98,180.45,180.36,3.09]
[1755582188816,2.98,180.45,180.36,8.6321]
[1755582189019,2.98,180.45,180.37,3.09]
[1755582189618,2.98,180.45,180.36,3.09]
[1755582190014,2.98,180.45,180.39,3.09]
[1755582191221,140.08,180.46,180.39,3.09]
[1755582192520,2.98,180.45,180.39,3.09]
[1755582193324,2.98,180.45,180.36,3.09]
[1755582196214,2.98,180.45,180.38,3.09]
[1755582201224,2.98,180.45,180.38,8.6315]
[1755582201827,2.98,180.45,180.38,3.09]
[1755582202937,2.98,180.45,180.38,8.6313]
[1755582203136,2.98,180.45,180.39,3.2]
[1755582203830,137.1,180.46,180.39,3.2]
[1755582204928,2.89,180.45,180.36,3.2]
[1755582207737,2.89,180.45,180.37,5.5416]
[1755582207931,2.89,180.45,180.38,3.2]
[1755582208638,2.89,180.45,180.38,8.7415]
[1755582209039,2.89,180.45,180.38,3.2]
[1755582209837,2.89,180.45,180.35,8.7423]
[1755582210140,4.40751717,180.44,180.37,3.2]
[1755582210330,2.89,180.45,180.37,3.2]
[1755582211344,4.4090932,180.44,180.37,3.2]
[1755582211642,2.89,180.45,180.37,3.2]
[1755582211844,2.89,180.43,180.37,3.2]
[1755582212336,2.89,180.43,180.35,3.2]
[1755582212932,4.41041906,180.42,180.32,9.38459558]
[1755582213244,2.89,180.4,180.32,3.2]
[1755582216146,2.89,180.4,180.32,8.7434]
[1755582216334,2.89,180.4,180.33,3.2]
[1755582219047,2.89,180.4,180.31,9.89712845]
[1755582219249,2.89,180.43,180.35,3.2]
[1755582219445,2.89,180.43,180.33,9.38459558]
[1755582219650,4.41014763,180.42,180.33,3.2]
[1755582219948,2.89,180.41,180.33,3.2]
[1755582226351,8.1373849,180.4,180.3,3.2]
[1755582226548,2.89,180.38,180.3,3.2]
[1755582226750,4.42485203,180.37,180.3,3.2]
[1755582226955,2.89,180.36,180.3,3.2]
[1755582227357,3.71253287,180.37,180.3,3.2]
[1755582227358,2.89,180.34,180.3,3.2]
[1755582227555,2.89,180.33,180.3,3.2]
[1755582227751,3.71253287,180.37,180.26,5.5452]
[1755582228051,2.89,180.32,180.29,3.2]
[1755582228258,2.89,180.35,180.26,3.2]
[1755582230852,2.89,180.33,180.26,3.2]
[1755582232256,2.89,180.33,180.21,5.5466]
[1755582232463,2.98,180.3,180.23,3.12]
[1755582232660,2.98,180.3,180.2,3.12]
[1755582232661,3.71253287,180.28,180.2,3.12]
[1755582232860,2.98,180.27,180.2,3.12]
[1755582233461,16.68,180.35,180.2,3.12]
[1755582233662,20.39253287,180.37,180.23,3.12]
[1755582233866,2.98,180.35,180.23,3.12]
[1755582234172,2.98,180.35,180.25,3.12]
[1755582238258,2.98,180.33,180.25,3.12]
[1755582252874,3.71253287,180.35,180.26,3.12]
[1755582253383,3.71253287,180.35,180.27,3.12]
[1755582254576,2.98,180.34,180.27,3.12]
[1755582255279,3.71253287,180.35,180.27,3.12]
[1755582257685,6.69253287,180.4,180.29,3.12]
[1755582258383,2.98,180.39,180.29,3.12]
[1755582259686,2.98,180.39,180.3,3.12]
[1755582262789,2.96,180.36,180.3,3.12]
[1755582264091,2.96,180.33,180.26,3.14]
[1755582266292,2.96,180.33,180.21,3.14]
[1755582267702,2.96,180.33,180.24,3.14]
[1755582270894,143.15105682,180.37,180.17,9.27611286]
[1755582270895,2.96,180.3,180.21,3.14]
[1755582272395,2.96,180.27,180.17,3.14]
[1755582275701,3.71253287,180.25,180.17,3.14]
[1755582275901,2.96,180.24,180.17,3.14]
[1755582276109,2.96,180.24,180.14,3.14]
[1755582276305,2.96,180.21,180.14,3.14]
[1755582282307,2.96,180.18,180.1,3.14]
[1755582285616,2.96,180.15,180.01,3.14]
[1755582286010,2.96,180.15,180.05,5.5517]
[1755582286208,2.96,180.15,180.0,3.71253287]
[1755582286209,2.96,180.15,180.06,3.14]
[1755582289217,2.96,180.12,180.03,3.14]
[1755582289917,2.96,180.12,180.04,3.14]
[1755582292921,2.96,180.12,180.04,8.692]
[1755582293223,3.71253287,180.13,180.05,3.03]
[1755582295725,6.62253287,180.13,180.05,3.03]
[1755582296524,2.91,180.12,180.05,3.03]
[1755582296923,3.71253287,180.13,180.05,3.03]
[1755582297123,2.91,180.15,180.06,3.03]
[1755582297724,2.91,180.15,180.06,5.5513]
[1755582297924,2.91,180.15,180.07,3.03]
[1755582300929,2.91,180.18,180.07,3.03]
[1755582301125,2.91,180.18,180.07,8.5808]
[1755582301328,2.91,180.18,180.08,3.03]
[1755582302035,140.75253287,180.19,180.05,3.71253287]
[1755582302036,2.91,180.15,180.05,3.03]
[1755582302629,2.91,180.15,180.07,3.03]
[1755582302828,2.91,180.18,180.07,3.03]
[1755582303634,2.91,180.15,180.07,3.03]
[1755582304426,2.91,180.15,180.04,3.03]
[1755582305335,2.91,180.15,180.04,5.552]
[1755582305638,2.91,180.15,180.05,3.03]
[1755582306832,2.91,180.15,180.06,3.03]
[1755582309233,2.91,180.15,180.06,5.5512]
[1755582309532,2.91,180.15,180.07,3.03]
[1755582310639,2.91,180.15,180.02,6.74253287]
[1755582310840,2.91,180.12,180.02,3.03]
[1755582312938,3.71253287,180.1,180.02,3.03]
[1755582313144,2.91,180.09,180.02,3.03]
[1755582313740,2.91,180.09,179.99,3.03]
[1755582316645,2.91,180.06,179.99,3.03]
[1755582316832,373.08,180.15,179.95,3.03]
[1755582316833,2.91,180.03,179.95,3.03]
[1755582317841,3.71253287,180.01,179.91,3.03]